fUSD/lending_fUSD_20250302
["ID","MTS","AMOUNT","RATE_DAILY","PERIOD"]
[355125732,1740930639984,-1000.0,0.00024658,2]
[355125733,1740930639994,-500.0,0.00024673,2]
[355125734,1740930640009,-504.78346999,0.00024673,2]
[355125735,1740930640019,-500.0,0.00024673,2]
[355125736,1740930640029,-500.0,0.00024673,2]
[355125737,1740930640039,-500.30033184,0.00024673,2]
[355125738,1740930640049,-501.18772464,0.00024673,2]
[355125739,1740930640059,-500.38942087,0.00024673,2]
[355125740,1740930640069,-3700.0,0.000249,9]
[355125741,1740930640079,-157.95,0.0002492,2]
[355125742,1740930640089,-169.793464,0.00024931,2]
[355125743,1740930640099,-194.188231,0.00024931,2]
[355125744,1740930640109,-260.54931711,0.00024931,2]
[355125745,1740930640119,-564.0,0.00024931,2]
[355125746,1740930640129,-500.0,0.00024931,2]
[355125747,1740930640139,-500.0,0.00024931,2]
[355125748,1740930640149,-625.50000067,0.00024931,2]
[355125749,1740930640159,-618.85964621,0.00024931,2]
[355125750,1740930640169,-500.0,0.00024931,2]
[355125751,1740930640180,-151.0,0.00024931,7]
[355125752,1740930640190,-579.22,0.00024931,2]
[355125753,1740930640200,-331.81,0.00024931,2]
[355125754,1740930640209,-500.0,0.00024931,2]
[355125755,1740930640219,-151.0,0.00024931,7]
[355125756,1740930640229,-500.0,0.00024931,2]
[355125757,1740930640238,-500.0,0.00024931,2]
[355125758,1740930640248,-644.42,0.00024931,2]
[355125759,1740930640261,-500.0,0.00024931,2]
[355125760,1740930640271,-500.0,0.00024931,2]
[355125761,1740930640281,-150.56,0.00024931,2]
[355125762,1740930640291,-500.0,0.00024931,2]
[355125763,1740930640301,-151.0,0.00024931,7]
[355125764,1740930640311,-500.0,0.00024931,2]
[355125765,1740930640321,-151.0,0.00024931,7]
[355125766,1740930640331,-500.0,0.00024931,2]
[355125767,1740930640340,-151.0,0.00024931,7]
[355125769,1740930640350,-218.91,0.00024931,2]
[355125770,1740930640359,-515.25,0.00024931,2]
[355125772,1740930640370,-151.807839,0.00024931,7]
[355125773,1740930640379,-500.0,0.00024931,2]
[355125774,1740930640389,-500.0,0.00024931,2]
[355125775,1740930640399,-311.32,0.00024931,2]
[355125776,1740930640409,-232.41,0.00024931,2]
[355125777,1740930640418,-450.01,0.00024931,2]
[355125778,1740930640428,-320.99,0.00024931,2]
[355125780,1740930640438,-500.0,0.00024931,2]
[355125782,1740930640447,-424.52,0.00024931,2]
[355125784,1740930640457,-151.0,0.00024931,7]
[355125786,1740930640467,-500.0,0.00024931,2]
[355125788,1740930640476,-500.0,0.00024931,2]
[355125790,1740930640486,-500.0,0.00024931,2]
[355125792,1740930640495,-500.0,0.00024931,2]
[355125794,1740930640509,-151.0,0.00024931,7]
[355125796,1740930640524,-540.2,0.00024931,2]
[355125798,1740930640535,-500.0,0.00024931,2]
[355125800,1740930640546,-500.0,0.00024931,2]
[355125802,1740930640556,-500.0,0.00024931,2]
[355125804,1740930640565,-383.71,0.00024931,2]
[355125807,1740930640575,-500.0,0.00024931,2]
[355125809,1740930640585,-500.0,0.00024931,2]
[355125811,1740930640595,-266.77,0.00024931,2]
[355125813,1740930640605,-500.0,0.00024931,2]
[355125815,1740930640616,-500.0,0.00024931,2]
[355125817,1740930640626,-151.0,0.00024931,7]
[355125819,1740930640636,-151.66,0.00024931,2]
[355125820,1740930640646,-500.0,0.00024931,2]
[355125822,1740930640655,-500.0,0.00024931,2]
[355125824,1740930640665,-500.0,0.00024931,2]
[355125826,1740930640675,-500.0,0.00024931,2]
[355125827,1740930640685,-500.0,0.00024931,2]
[355125828,1740930640701,-500.0,0.00024931,2]
[355125829,1740930640820,-500.0,0.00024931,2]
[355125830,1740930640831,-500.0,0.00024931,2]
[355125831,1740930640841,-500.0,0.00024931,2]
[355125832,1740930640851,-500.0,0.00024931,2]
[355125833,1740930640863,-297.66,0.00024931,2]
[355125834,1740930640873,-500.0,0.00024931,2]
[355125835,1740930640883,-500.0,0.00024931,2]
[355125836,1740930640892,-500.0,0.00024931,2]
[355125837,1740930640902,-500.0,0.00024931,2]
[355125838,1740930640912,-500.0,0.00024931,2]
[355125839,1740930640922,-500.0,0.00024931,2]
[355125840,1740930640932,-500.0,0.00024931,2]
[355125841,1740930640941,-500.0,0.00024931,2]
[355125842,1740930640951,-151.533361,0.00024931,7]
[355125843,1740930640961,-500.0,0.00024931,2]
[355125844,1740930640970,-500.0,0.00024931,2]
[355125845,1740930640979,-500.0,0.00024931,2]
[355125846,1740930640989,-500.0,0.00024931,2]
[355125847,1740930640998,-500.0,0.00024931,2]
[355125848,1740930641013,-500.0,0.00024931,2]
[355125849,1740930641022,-500.0,0.00024931,2]
[355125850,1740930641032,-500.0,0.00024931,2]
[355125851,1740930641041,-157.683946,0.00024931,7]
[355125852,1740930641051,-500.0,0.00024931,2]
[355125853,1740930641060,-500.0,0.00024931,2]
[355125854,1740930641070,-151.0,0.00024931,7]
[355125855,1740930641079,-500.0,0.00024931,2]
[355125856,1740930641089,-500.0,0.00024931,2]
[355125857,1740930641101,-500.0,0.00024931,2]
[355125858,1740930641111,-500.0,0.00024931,2]
[355125859,1740930641120,-1012.05,0.00024931,2]
[355125860,1740930641129,-500.0,0.00024931,2]
[355125861,1740930641139,-151.0,0.00024931,7]
[355125862,1740930641148,-500.0,0.00024931,2]
[355125863,1740930641158,-500.0,0.00024931,2]
[355125864,1740930641167,-345.92476383,0.00024931,2]
[355125865,1740930641177,-500.0,0.00024931,2]
[355125866,1740930641187,-500.0,0.00024931,2]
[355125867,1740930641197,-500.0,0.00024931,2]
[355125868,1740930641207,-500.0,0.00024931,2]
[355125869,1740930641217,-500.0,0.00024931,2]
[355125870,1740930641227,-151.0,0.00024931,7]
[355125871,1740930641237,-560.48,0.00024931,2]
[355125872,1740930641247,-500.0,0.00024931,2]
[355125873,1740930641263,-151.0,0.00024931,7]
[355125874,1740930641274,-500.0,0.00024931,2]
[355125875,1740930641284,-152.119603,0.00024931,7]
[355125876,1740930641295,-500.0,0.00024931,2]
[355125877,1740930641305,-500.0,0.00024931,2]
[355125878,1740930641315,-500.0,0.00024931,2]
[355125879,1740930641325,-500.0,0.00024931,2]
[355125880,1740930641336,-500.0,0.00024931,2]
[355125881,1740930641346,-500.0,0.00024931,2]
[355125882,1740930641357,-500.0,0.00024931,2]
[355125883,1740930641367,-500.0,0.00024931,2]
[355125884,1740930641378,-500.0,0.00024931,2]
[355125885,1740930641388,-500.0,0.00024931,2]
[355125886,1740930641398,-500.0,0.00024931,2]
[355125887,1740930641408,-151.0,0.00024931,7]
[355125888,1740930641419,-500.0,0.00024931,2]
[355125889,1740930641429,-500.0,0.00024931,2]
[355125890,1740930641439,-500.0,0.00024931,2]
[355125891,1740930641449,-849.78,0.00024931,2]
[355125892,1740930641459,-500.0,0.00024931,2]
[355125893,1740930641470,-500.0,0.00024931,2]
[355125894,1740930641480,-500.0,0.00024931,2]
[355125895,1740930641493,-500.0,0.00024931,2]
[355125896,1740930641511,-500.0,0.00024931,2]
[355125897,1740930641522,-151.0,0.00024931,7]
[355125898,1740930641534,-500.0,0.00024931,2]
[355125899,1740930641545,-500.0,0.00024931,2]
[355125900,1740930641555,-151.0,0.00024931,7]
[355125901,1740930641565,-500.0,0.00024931,2]
[355125902,1740930641575,-155.209395,0.00024931,7]
[355125903,1740930641587,-569.85080973,0.00024931,2]
[355125904,1740930641597,-500.0,0.00024931,2]
[355125905,1740930641607,-500.0,0.00024931,2]
[355125906,1740930641618,-593.11,0.00024931,2]
[355125907,1740930641628,-500.0,0.00024931,2]
[355125908,1740930641638,-151.0,0.00024931,7]
[355125909,1740930641647,-500.0,0.00024931,2]
[355125910,1740930641657,-151.0,0.00024931,7]
[355125911,1740930641667,-616.96,0.00024931,2]
[355125912,1740930641677,-500.0,0.00024931,2]
[355125913,1740930641686,-151.0,0.00024931,7]
[355125914,1740930641696,-500.0,0.00024931,2]
[355125915,1740930641706,-500.0,0.00024931,2]
[355125916,1740930641716,-500.0,0.00024931,2]
[355125917,1740930641726,-500.0,0.00024931,2]
[355125918,1740930641736,-500.0,0.00024931,2]
[355125919,1740930641746,-500.0,0.00024931,2]
[355125920,1740930641761,-500.0,0.00024931,2]
[355125921,1740930641772,-500.0,0.00024931,2]
[355125922,1740930641782,-157.471942,0.00024931,7]
[355125923,1740930641792,-500.0,0.00024931,2]
[355125924,1740930641802,-500.0,0.00024931,2]
[355125925,1740930641812,-151.0,0.00024931,7]
[355125926,1740930641822,-500.0,0.00024931,2]
[355125927,1740930641831,-500.0,0.00024931,2]
[355125928,1740930641841,-151.0,0.00024931,7]
[355125929,1740930641850,-500.0,0.00024931,2]
[355125930,1740930641860,-500.0,0.00024931,2]
[355125931,1740930641870,-500.0,0.00024931,2]
[355125932,1740930641880,-500.0,0.00024931,2]
[355125933,1740930641891,-500.0,0.00024931,2]
[355125934,1740930641901,-500.0,0.00024931,2]
[355125935,1740930641911,-500.0,0.00024931,2]
[355125936,1740930641920,-151.0,0.00024931,7]
[355125937,1740930641930,-215.807233,0.00024931,7]
[355125938,1740930641940,-500.0,0.00024931,2]
[355125939,1740930641951,-749.04,0.00024931,2]
[355125940,1740930641961,-500.0,0.00024931,2]
[355125941,1740930641970,-500.0,0.00024931,2]
[355125942,1740930641980,-151.0,0.00024931,7]
[355125943,1740930641991,-515.63,0.00024931,2]
[355125944,1740930642001,-500.0,0.00024931,2]
[355125945,1740930642017,-500.0,0.00024931,2]
[355125946,1740930642026,-903.02,0.00024931,2]
[355125947,1740930642036,-167.63,0.00024931,2]
[355125948,1740930642046,-1399.85,0.00024931,2]
[355125949,1740930642056,-500.0,0.00024931,2]
[355125950,1740930642066,-500.0,0.00024931,2]
[355125951,1740930642076,-500.0,0.00024931,2]
[355125952,1740930642086,-500.0,0.00024931,2]
[355125953,1740930642096,-500.0,0.00024931,2]
[355125954,1740930642106,-500.0,0.00024931,2]
[355125955,1740930642116,-500.0,0.00024931,2]
[355125956,1740930642127,-2759.04,0.00024931,2]
[355125957,1740930642136,-579.28,0.00024931,2]
[355125958,1740930642146,-169.26,0.00024931,2]
[355125959,1740930642156,-908.68,0.00024931,2]
[355125960,1740930642166,-1649.39,0.00024931,2]
[355125961,1740930642176,-439.4621217,0.00024931,2]
[355125962,1740930642187,-893.1,0.00024931,2]
[355125963,1740930642197,-501.4975,0.00024931,2]
[355125964,1740930642208,-1036.89,0.00024931,2]
[355125965,1740930642218,-777.5,0.00024931,2]
[355125966,1740930642237,-500.0,0.00024931,2]
[355125967,1740930642247,-500.0,0.00024931,2]
[355125968,1740930642260,-1965.61,0.00024931,2]
[355125969,1740930642270,-500.0,0.00024931,2]
[355125970,1740930642281,-151.838842,0.00024931,7]
[355125971,1740930642291,-500.0,0.00024931,2]
[355125972,1740930642300,-763.07,0.00024931,2]
[355125973,1740930642310,-500.0,0.00024931,2]
[355125974,1740930642320,-500.0,0.00024931,2]
[355125976,1740930642329,-1418.55,0.00024931,2]
[355125977,1740930642340,-500.0,0.00024931,2]
[355125978,1740930642350,-500.0,0.00024931,2]
[355125979,1740930642360,-1316.21,0.00024931,2]
[355125980,1740930642370,-500.0,0.00024931,2]
[355125981,1740930642380,-500.0,0.00024931,2]
[355125982,1740930642390,-500.0,0.00024931,2]
[355125983,1740930642400,-184.23,0.00024931,2]
[355125984,1740930642410,-500.0,0.00024931,2]
[355125985,1740930642420,-500.0,0.00024931,2]
[355125988,1740930642430,-1430.92,0.00024931,2]
[355125991,1740930642441,-500.0,0.00024931,2]
[355125993,1740930642451,-500.0,0.00024931,2]
[355125994,1740930642461,-500.0,0.00024931,2]
[355125995,1740930642471,-500.0,0.00024931,2]
[355125996,1740930642482,-296.36,0.00024931,2]
[355125998,1740930642493,-500.0,0.00024931,2]
[355126000,1740930642503,-158.16,0.00024931,2]
[355126002,1740930642520,-1355.18,0.00024931,2]
[355126004,1740930642531,-215.74,0.00024931,2]
[355126006,1740930642541,-486.02,0.00024931,2]
[355126008,1740930642551,-500.0,0.00024931,2]
[355126010,1740930642561,-640.18070997,0.00024931,2]
[355126012,1740930642572,-500.0,0.00024931,2]
[355126014,1740930642583,-500.0,0.00024931,2]
[355126015,1740930642593,-500.0,0.00024931,2]
[355126016,1740930642603,-500.0,0.00024931,2]
[355126017,1740930642613,-235.32276744,0.00024931,2]
[355126018,1740930642622,-150.25,0.00024931,2]
[355126019,1740930642633,-500.0,0.00024931,2]
[355126020,1740930642643,-500.0,0.00024931,2]
[355126021,1740930642653,-500.0,0.00024931,2]
[355126022,1740930642663,-932.581104,0.00024931,7]
[355126023,1740930642673,-272.08,0.00024931,2]
[355126024,1740930642684,-500.0,0.00024931,2]
[355126025,1740930642694,-500.0,0.00024931,2]
[355126026,1740930642821,-500.0,0.00024931,2]
[355126027,1740930642832,-1232.63,0.00024931,2]
[355126028,1740930642842,-500.0,0.00024931,2]
[355126029,1740930642853,-500.0,0.00024931,2]
[355126030,1740930642862,-151.0,0.00024931,7]
[355126031,1740930642872,-528.98,0.00024931,2]
[355126032,1740930642882,-500.0,0.00024931,2]
[355126033,1740930642893,-151.0,0.00024931,7]
[355126034,1740930642903,-500.0,0.00024931,2]
[355126035,1740930642913,-500.0,0.00024931,2]
[355126036,1740930642923,-500.0,0.00024931,2]
[355126037,1740930642933,-500.0,0.00024931,2]
[355126038,1740930642944,-500.0,0.00024931,2]
[355126039,1740930642954,-500.0,0.00024931,2]
[355126040,1740930642965,-151.0,0.00024931,7]
[355126041,1740930642974,-500.0,0.00024931,2]
[355126042,1740930642984,-500.0,0.00024931,2]
[355126043,1740930642995,-500.0,0.00024931,2]
[355126044,1740930643005,-500.0,0.00024931,2]
[355126045,1740930643021,-246.37,0.00024931,2]
[355126046,1740930643031,-823.0,0.00024931,2]
[355126047,1740930643041,-831.23,0.00024931,2]
[355126048,1740930643051,-580.87,0.00024931,2]
[355126049,1740930643061,-500.0,0.00024931,2]
[355126050,1740930643072,-151.0,0.00024931,7]
[355126051,1740930643082,-255.14,0.00024931,2]
[355126052,1740930643091,-603.63,0.00024931,2]
[355126053,1740930643101,-151.0,0.00024931,7]
[355126054,1740930643112,-500.0,0.00024931,2]
[355126055,1740930643122,-153.001278,0.00024931,7]
[355126057,1740930643132,-151.0,0.00024931,7]
[355126058,1740930643142,-500.0,0.00024931,2]
[355126060,1740930643151,-500.0,0.00024931,2]
[355126062,1740930643161,-1637.62,0.00024931,2]
[355126064,1740930643171,-500.0,0.00024931,2]
[355126065,1740930643181,-500.0,0.00024931,2]
[355126066,1740930643191,-1394.88,0.00024931,2]
[355126067,1740930643200,-500.0,0.00024931,2]
[355126068,1740930643210,-500.0,0.00024931,2]
[355126069,1740930643220,-500.0,0.00024931,2]
[355126070,1740930643231,-4299.86,0.00024931,2]
[355126072,1740930643242,-2839.17,0.00024931,2]
[355126075,1740930643253,-500.0,0.00024931,2]
[355126076,1740930643269,-500.0,0.00024931,2]
[355126077,1740930643280,-281.58,0.00024931,2]
[355126078,1740930643290,-766.74,0.00024931,2]
[355126079,1740930643300,-749.36,0.00024931,2]
[355126080,1740930643310,-910.07,0.00024931,2]
[355126081,1740930643321,-500.0,0.00024931,2]
[355126082,1740930643331,-500.0,0.00024931,2]
[355126083,1740930643342,-500.0,0.00024931,2]
[355126087,1740930643352,-151.27956,0.00024931,7]
[355126090,1740930643362,-535.82,0.00024931,2]
[355126093,1740930643373,-152.879553,0.00024931,7]
[355126095,1740930643383,-500.0,0.00024931,2]
[355126096,1740930643394,-500.0,0.00024931,2]
[355126098,1740930643404,-500.0,0.00024931,2]
[355126100,1740930643415,-500.0,0.00024931,2]
[355126102,1740930643425,-500.0,0.00024931,2]
[355126104,1740930643435,-500.0,0.00024931,2]
[355126106,1740930643444,-500.0,0.00024931,2]
[355126108,1740930643454,-500.0,0.00024931,2]
[355126111,1740930643463,-500.0,0.00024931,2]
[355126115,1740930643473,-500.0,0.00024931,2]
[355126117,1740930643482,-408.08,0.00024931,2]
[355126120,1740930643495,-378.36,0.00024931,2]
[355126121,1740930643505,-500.0,0.00024931,2]
[355126123,1740930643522,-1121.7,0.00024931,2]
[355126125,1740930643532,-500.0,0.00024931,2]
[355126128,1740930643543,-500.0,0.00024931,2]
[355126130,1740930643553,-516.14,0.00024931,2]
[355126133,1740930643563,-500.0,0.00024931,2]
[355126135,1740930643574,-151.0,0.00024931,7]
[355126137,1740930643584,-1622.86,0.00024931,2]
[355126139,1740930643593,-1793.0,0.00024931,2]
[355126141,1740930643603,-500.0,0.00024931,2]
[355126142,1740930643613,-500.0,0.00024931,2]
[355126144,1740930643622,-151.0,0.00024931,7]
[355126146,1740930643632,-1560.4,0.00024931,2]
[355126148,1740930643642,-151.0,0.00024931,7]
[355126149,1740930643652,-500.0,0.00024931,2]
[355126151,1740930643662,-500.0,0.00024931,2]
[355126153,1740930643672,-500.0,0.00024931,2]
[355126155,1740930643683,-500.0,0.00024931,2]
[355126157,1740930643693,-151.0,0.00024931,7]
[355126159,1740930643702,-500.0,0.00024931,2]
[355126160,1740930643712,-618.43,0.00024931,2]
[355126162,1740930643722,-151.0,0.00024931,7]
[355126164,1740930643732,-500.0,0.00024931,2]
[355126166,1740930643742,-500.0,0.00024931,2]
[355126168,1740930643752,-151.0,0.00024931,7]
[355126170,1740930643767,-577.66,0.00024931,2]
[355126172,1740930643778,-500.0,0.00024931,2]
[355126174,1740930643788,-500.0,0.00024931,2]
[355126176,1740930643797,-760.98,0.00024931,2]
[355126178,1740930643807,-500.0,0.00024931,2]
[355126180,1740930643818,-500.0,0.00024931,2]
[355126182,1740930643829,-889.47,0.00024931,2]
[355126184,1740930643839,-733.37,0.00024931,2]
[355126185,1740930643849,-500.0,0.00024931,2]
[355126187,1740930643859,-500.0,0.00024931,2]
[355126188,1740930643870,-500.0,0.00024931,2]
[355126189,1740930643880,-500.0,0.00024931,2]
[355126190,1740930643890,-151.0,0.00024931,7]
[355126191,1740930643901,-500.0,0.00024931,2]
[355126192,1740930643911,-806.07,0.00024931,2]
[355126193,1740930643920,-2443.66,0.00024931,2]
[355126194,1740930643930,-500.0,0.00024931,2]
[355126195,1740930643940,-500.0,0.00024931,2]
[355126196,1740930643950,-1000.0,0.00024931,2]
[355126197,1740930643959,-500.0,0.00024931,2]
[355126198,1740930643969,-500.0,0.00024931,2]
[355126199,1740930643979,-151.0,0.00024931,7]
[355126200,1740930643988,-226.58696308,0.00024931,2]
[355126201,1740930643998,-500.0,0.00024931,2]
[355126202,1740930644012,-297.44,0.00024931,7]
[355126203,1740930644022,-3279.81,0.00024931,2]
[355126205,1740930644033,-151.0,0.00024931,7]
[355126207,1740930644043,-385.57983307,0.00024931,2]
[355126209,1740930644053,-1526.61,0.00024931,2]
[355126211,1740930644063,-493.86506809,0.00024931,2]
[355126213,1740930644073,-151.0,0.00024931,7]
[355126215,1740930644083,-1347.2,0.00024931,2]
[355126217,1740930644093,-644.31,0.00024931,2]
[355126219,1740930644103,-727.44,0.00024931,2]
[355126221,1740930644113,-500.0,0.00024931,2]
[355126223,1740930644123,-501.26062627,0.00024931,2]
[355126225,1740930644133,-6425.9934179,0.00024993,2]
[355126226,1740930644142,-35581.25191908,0.00025,3]
[355126259,1740930644470,-3282.33897135,0.00025,3]
[355126262,1740930644497,-24669.08778933,0.00025,3]
[355126265,1740930644514,-712.74108454,0.00025,3]
[355126267,1740930644527,-1132.15,0.00025,3]
[355126313,1740930645056,-630.0,0.000162,2]
[355126315,1740930645067,-276.114,0.00024072,2]
[355126317,1740930645078,-527.05,0.00024657,2]
[355126319,1740930645088,-581.84,0.00024931,2]
[355126321,1740930645098,-34622.4302357,0.00025,3]
[355126323,1740930645108,-4220.20166199,0.00025,6]
[355126325,1740930645118,-3414.52400964,0.00025,10]
[355126327,1740930645129,-550.0,0.00025,2]
[355126329,1740930645139,-249.716188,0.00025,7]
[355126331,1740930645150,-1980.94989603,0.0002506,2]
[355126333,1740930645161,-217.399418,0.00025157,30]
[355126335,1740930645171,-2000.0,0.00025196,4]
[355126338,1740930645182,-987.22,0.00025204,2]
[355126340,1740930645192,-169.793464,0.00025205,2]
[355126342,1740930645202,-194.188231,0.00025205,2]
[355126344,1740930645218,-233.32,0.00025205,2]
[355126347,1740930645240,-528.69722218,0.00025205,2]
[355126350,1740930645256,-408.12,0.00025205,2]
[355126353,1740930645281,-500.0,0.00025205,2]
[355126356,1740930645302,-301.9167923,0.00025205,2]
[355126359,1740930645317,-151.0,0.00025205,7]
[355126362,1740930645337,-500.0,0.00025205,2]
[355126365,1740930645356,-500.0,0.00025205,2]
[355126369,1740930645377,-166.6,0.00025205,2]
[355126372,1740930645396,-354.78,0.00025205,2]
[355126374,1740930645417,-500.0,0.00025205,2]
[355126377,1740930645435,-178.11,0.00025205,2]
[355126380,1740930645453,-500.0,0.00025205,2]
[355126383,1740930645472,-500.0,0.00025205,2]
[355126386,1740930645493,-267.50129153,0.00025205,2]
[355126388,1740930645511,-500.0,0.00025205,2]
[355126390,1740930645526,-622.84,0.00025205,2]
[355126394,1740930645549,-608.18,0.00025205,2]
[355126397,1740930645562,-500.0,0.00025205,2]
[355126400,1740930645576,-500.0,0.00025205,2]
[355126404,1740930645595,-500.0,0.00025205,2]
[355126408,1740930645610,-201.2,0.00025205,2]
[355126411,1740930645625,-587.42,0.00025205,2]
[355126416,1740930645642,-107.33051112,0.00025205,2]
[355126420,1740930645661,-392.66948888,0.00025205,2]
[355126422,1740930645677,-467.63051112,0.00025205,2]
[355126425,1740930645696,-32.36948888,0.00025205,2]
[355126428,1740930645711,-217.13,0.00025205,2]
[355126433,1740930645727,-500.0,0.00025205,2]
[355126435,1740930645742,-500.0,0.00025205,2]
[355126438,1740930645756,-193.27,0.00025205,2]
[355126440,1740930645778,-500.0,0.00025205,2]
[355126443,1740930645792,-500.0,0.00025205,2]
[355126445,1740930645808,-500.0,0.00025205,2]
[355126448,1740930645825,-500.0,0.00025205,2]
[355126451,1740930645841,-500.0,0.00025205,2]
[355126453,1740930645857,-500.0,0.00025205,2]
[355126456,1740930645872,-500.0,0.00025205,2]
[355126458,1740930645888,-183.74,0.00025205,2]
[355126461,1740930645903,-500.0,0.00025205,2]
[355126463,1740930645918,-500.0,0.00025205,2]
[355126466,1740930645934,-524.86996584,0.00025205,2]
[355126469,1740930645949,-500.0,0.00025205,2]
[355126471,1740930645965,-500.0,0.00025205,2]
[355126474,1740930645980,-498.96255722,0.00025205,2]
[355126476,1740930645996,-500.0,0.00025205,2]
[355126479,1740930646013,-500.0,0.00025205,2]
[355126481,1740930646029,-500.0,0.00025205,2]
[355126484,1740930646044,-500.0,0.00025205,2]
[355126486,1740930646060,-500.0,0.00025205,2]
[355126489,1740930646076,-500.0,0.00025205,2]
[355126492,1740930646094,-500.0,0.00025205,2]
[355126494,1740930646107,-354.8,0.00025205,2]
[355126496,1740930646117,-500.0,0.00025205,2]
[355126498,1740930646127,-1012.05,0.00025205,2]
[355126500,1740930646136,-218.6,0.00025205,2]
[355126502,1740930646146,-430.95744444,0.00025205,2]
[355126504,1740930646156,-500.0,0.00025205,2]
[355126506,1740930646166,-500.0,0.00025205,2]
[355126508,1740930646176,-500.0,0.00025205,2]
[355126510,1740930646186,-530.98,0.00025205,2]
[355126512,1740930646196,-500.0,0.00025205,2]
[355126514,1740930646206,-500.0,0.00025205,2]
[355126516,1740930646218,-500.0,0.00025205,2]
[355126518,1740930646228,-500.0,0.00025205,2]
[355126520,1740930646238,-500.0,0.00025205,2]
[355126522,1740930646248,-500.0,0.00025205,2]
[355126523,1740930646257,-331.6,0.00025205,2]
[355126525,1740930646271,-500.0,0.00025205,2]
[355126527,1740930646280,-207.41054362,0.00025205,2]
[355126530,1740930646293,-292.58945638,0.00025205,2]
[355126532,1740930646303,-540.32,0.00025205,2]
[355126534,1740930646313,-500.0,0.00025205,2]
[355126536,1740930646323,-151.0,0.00025205,7]
[355126538,1740930646332,-500.0,0.00025205,2]
[355126540,1740930646343,-500.0,0.00025205,2]
[355126568,1740930646612,-649.74,0.00025205,2]
[355126572,1740930646649,-849.78,0.00025205,2]
[355126574,1740930646669,-500.0,0.00025205,2]
[355126576,1740930646682,-417.03,0.00025205,2]
[355126578,1740930646693,-500.0,0.00025205,2]
[355126580,1740930646706,-554.46,0.00025205,2]
[355126582,1740930646718,-500.0,0.00025205,2]
[355126584,1740930646729,-500.0,0.00025205,2]
[355126586,1740930646739,-500.0,0.00025205,2]
[355126588,1740930646750,-500.0,0.00025205,2]
[355126590,1740930646764,-500.0,0.00025205,2]
[355126592,1740930646775,-500.0,0.00025205,2]
[355126594,1740930646786,-500.0,0.00025205,2]
[355126596,1740930646796,-257.987654,0.00025205,7]
[355126598,1740930646806,-500.0,0.00025205,2]
[355126600,1740930646816,-500.0,0.00025205,2]
[355126602,1740930646826,-500.0,0.00025205,2]
[355126604,1740930646836,-500.0,0.00025205,2]
[355126606,1740930646847,-500.0,0.00025205,2]
[355126608,1740930646857,-398.7,0.00025205,2]
[355126610,1740930646868,-500.0,0.00025205,2]
[355126611,1740930646878,-205.6,0.00025205,2]
[355126613,1740930646888,-247.79288962,0.00025205,2]